bitfinex/quotes_BTCUSD_20240902
["timestamp","ask_amount","ask_price","bid_price","bid_amount"]
[1725299413973,0.554912,58645.0,58644.0,0.014]
[1725299414181,0.895947,58645.0,58644.0,0.014]
[1725299414847,0.895947,58645.0,58644.0,0.007]
[1725299415085,0.170533,58640.0,58636.0,0.170541]
[1725299415510,0.170533,58640.0,58637.0,0.04145479]
[1725299416395,0.170537,58638.0,58637.0,0.04145479]
[1725299416614,0.176237,58638.0,58637.0,0.04145479]
[1725299416840,0.176237,58638.0,58637.0,0.007]
[1725299417048,0.176237,58638.0,58637.0,0.04845479]
[1725299417680,0.211437,58638.0,58637.0,0.04145479]
[1725299417875,0.211437,58638.0,58637.0,0.009]
[1725299418125,0.552512,58638.0,58637.0,0.05045974]
[1725299418320,0.552512,58638.0,58637.0,0.016]
[1725299418539,0.211437,58638.0,58637.0,0.05745974]
[1725299418753,0.211437,58638.0,58637.0,0.009]
[1725299418955,0.893587,58638.0,58637.0,0.05045974]
[1725299419158,0.893587,58638.0,58637.0,0.019]
[1725299419419,0.552512,58638.0,58637.0,0.019]
[1725299419642,0.893587,58638.0,58637.0,0.019]
[1725299421302,1.234662,58638.0,58637.0,0.019]
[1725299421703,1.234662,58638.0,58637.0,0.0198965]
[1725299425018,1.575737,58638.0,58637.0,0.0198965]
[1725299425712,1.577737,58638.0,58637.0,0.0098965]
[1725299425937,1.575737,58638.0,58637.0,0.0098965]
[1725299426198,1.234662,58638.0,58637.0,0.0008965]
[1725299426431,1.238662,58638.0,58637.0,0.0028965]
[1725299427727,0.174537,58638.0,58637.0,0.0018965]
[1725299427958,0.515612,58638.0,58637.0,0.0018965]
[1725299428162,0.856687,58638.0,58637.0,0.0018965]
[1725299428332,0.858687,58638.0,58637.0,0.0028965]
[1725299428924,0.515612,58638.0,58637.0,0.0018965]
[1725299429168,0.004,58638.0,58637.0,0.0008965]
[1725299429353,0.002,58638.0,58637.0,0.04237343]
[1725299429615,0.005,58638.0,58637.0,0.04237343]
[1725299429877,0.208937,58638.0,58637.0,0.04237343]
[1725299430070,0.891087,58638.0,58637.0,0.04237343]
[1725299430364,0.891087,58638.0,58637.0,0.0008965]
[1725299431301,1.234462,58638.0,58637.0,0.0008965]
[1725299432219,0.857687,58638.0,58637.0,0.0008965]
[1725299433128,0.516612,58638.0,58637.0,0.0008965]
[1725299433569,0.516612,58638.0,58637.0,0.02324012]
[1725299433796,0.516612,58638.0,58637.0,0.0008965]
[1725299434051,0.175537,58638.0,58637.0,0.02324012]
[1725299434271,0.005,58638.0,58637.0,0.0008965]
[1725299434508,0.005,58638.0,58637.0,0.02324012]
[1725299434743,0.005,58638.0,58637.0,0.0008965]
[1725299434991,0.005,58638.0,58637.0,0.02324012]
[1725299435204,0.005,58638.0,58637.0,0.0008965]
[1725299435420,0.857687,58638.0,58637.0,0.02324012]
[1725299435633,0.893387,58638.0,58637.0,0.02324012]
[1725299435858,0.893387,58638.0,58637.0,0.0008965]
[1725299437194,1.234462,58638.0,58637.0,0.0008965]
[1725299437414,0.893387,58638.0,58637.0,0.0008965]
[1725299438298,1.234462,58638.0,58637.0,0.0008965]
[1725299442362,0.891087,58638.0,58637.0,0.0008965]
[1725299442590,1.232162,58638.0,58637.0,0.0008965]
[1725299442823,0.857687,58638.0,58637.0,0.0008965]
[1725299443795,0.005,58638.0,58637.0,1.0021985]
[1725299444039,0.005,58638.0,58637.0,0.6611175]
[1725299444295,0.005,58638.0,58637.0,0.68346093]
[1725299445400,0.005,58638.0,58637.0,1.02454193]
[1725299446743,0.005,58638.0,58637.0,0.68346093]
[1725299447814,0.005,58638.0,58637.0,0.09033993]
[1725299454347,0.175537,58638.0,58637.0,0.09033993]
[1725299454757,0.005,58638.0,58637.0,0.09033993]
[1725299456266,0.005,58638.0,58637.0,0.60196093]
[1725299457187,0.005,58638.0,58637.0,0.67996093]
[1725299457612,0.170527,58642.0,58639.0,0.170534]
[1725299458112,0.000815,58644.0,58640.0,0.36339844]
[1725299458318,0.000815,58644.0,58642.0,0.170525]
[1725299458936,0.000815,58644.0,58643.0,0.02233144]
[1725299459151,0.000815,58644.0,58643.0,0.01833144]
[1725299459362,0.000815,58644.0,58642.0,0.170524]
[1725299459554,0.000815,58644.0,58643.0,0.02204573]
[1725299459836,0.004815,58644.0,58643.0,0.53361473]
[1725299460044,0.004815,58644.0,58643.0,0.59681473]
[1725299460477,0.008815,58644.0,58643.0,0.59781473]
[1725299460709,0.008815,58644.0,58643.0,0.93886073]
[1725299460909,0.008815,58644.0,58643.0,1.01686073]
[1725299461125,0.008815,58644.0,58643.0,1.35890673]
[1725299463105,0.008815,58644.0,58643.0,0.59881473]
[1725299463329,0.008815,58644.0,58643.0,0.02404573]
[1725299464424,0.179335,58644.0,58643.0,0.02404573]
[1725299464681,0.008815,58644.0,58643.0,0.02404573]
[1725299465091,0.179335,58644.0,58643.0,0.02404573]
[1725299466643,0.520375,58644.0,58643.0,0.02404573]
[1725299466854,0.179335,58644.0,58643.0,0.02404573]
[1725299473281,0.512375,58644.0,58643.0,0.02204573]
[1725299473489,0.512375,58644.0,58643.0,0.02404573]
[1725299473700,0.512375,58644.0,58643.0,0.001]
[1725299473915,0.170526,58642.0,58640.0,0.0632]
[1725299474166,0.171335,58644.0,58643.0,0.003]
[1725299474374,0.512375,58644.0,58643.0,0.006]
[1725299474597,0.512375,58644.0,58643.0,0.02804473]
[1725299474809,0.512375,58644.0,58643.0,0.003]
[1725299475027,0.853419,58644.0,58643.0,0.02504473]
[1725299475254,0.853419,58644.0,58643.0,0.003]
[1725299475461,0.853419,58644.0,58643.0,0.02204473]
[1725299475672,0.170529,58641.0,58640.0,0.005]
[1725299475907,0.170529,58641.0,58640.0,0.01]
[1725299476339,0.170529,58641.0,58640.0,0.005]
[1725299476951,0.170532,58640.0,58637.0,0.3187365]
[1725299478569,0.170533,58640.0,58637.0,0.1481965]
[1725299478776,0.170533,58640.0,58637.0,0.3187365]
[1725299479392,0.170532,58640.0,58637.0,0.3267355]
[1725299479601,0.170536,58639.0,58637.0,0.1561965]
[1725299480013,0.170536,58639.0,58637.0,0.1641965]
[1725299480239,0.511612,58638.0,58637.0,0.1641965]
[1725299480446,0.62851805,58638.0,58637.0,0.1561965]
[1725299480651,0.62851805,58638.0,58637.0,0.0738965]
[1725299480836,0.62851805,58638.0,58637.0,0.0748965]
[1725299481191,0.62851805,58638.0,58637.0,0.0838965]
[1725299481415,0.62851805,58638.0,58637.0,0.0748965]
[1725299481595,0.62851805,58638.0,58637.0,0.0848965]
[1725299481999,0.511612,58638.0,58637.0,0.0848965]
[1725299482201,0.511612,58638.0,58637.0,0.0758965]
[1725299482456,0.511612,58638.0,58637.0,0.0858965]
[1725299484474,0.170537,58638.0,58637.0,0.0858965]
[1725299484700,0.341059,58641.0,58637.0,0.0858965]
[1725299484938,0.170533,58640.0,58637.0,0.2564355]
[1725299485171,0.170533,58640.0,58637.0,0.0858965]
[1725299485623,0.000815,58644.0,58643.0,0.170523]
[1725299485893,0.000815,58644.0,58643.0,0.33576789]
[1725299486124,0.000815,58644.0,58643.0,0.67681389]
[1725299486757,0.000815,58644.0,58643.0,0.67981389]
[1725299487414,0.000815,58644.0,58643.0,0.33876789]
[1725299488043,0.000815,58644.0,58643.0,0.34776789]
[1725299488457,0.000815,58644.0,58643.0,0.34476789]
[1725299489074,0.000815,58644.0,58643.0,0.35376789]
[1725299494277,0.000815,58644.0,58643.0,0.69481389]
[1725299494483,0.000815,58644.0,58643.0,0.35376789]
[1725299495965,0.000815,58644.0,58643.0,0.69481389]
[1725299496168,0.000815,58644.0,58643.0,1.03585989]
[1725299496400,0.000815,58644.0,58643.0,1.37690589]
[1725299496610,0.000815,58644.0,58643.0,1.39581215]
[1725299497256,0.000815,58644.0,58643.0,1.05476615]
[1725299498529,0.000815,58644.0,58643.0,1.03585989]
[1725299505339,0.000815,58644.0,58643.0,1.37690589]
[1725299505768,0.000815,58644.0,58643.0,1.39580835]
[1725299505971,0.000815,58644.0,58643.0,1.37690589]
[1725299506171,0.000815,58644.0,58643.0,1.39580643]
[1725299506380,0.000815,58644.0,58643.0,1.4468594]
[1725299506612,0.000815,58644.0,58643.0,1.49538589]
[1725299506922,0.000815,58644.0,58643.0,1.76075003]
[1725299507051,0.000815,58644.0,58643.0,1.86285598]
[1725299507804,0.00816,58650.0,58643.0,1.86285598]
[1725299507805,0.00816,58650.0,58644.0,1.53468]
[1725299508007,0.00816,58650.0,58644.0,1.83638649]
[1725299508186,0.00816,58650.0,58644.0,1.85842635]
[1725299508396,0.00816,58650.0,58644.0,2.64733309]
[1725299508624,0.00816,58650.0,58644.0,2.67499284]
[1725299508834,0.00816,58650.0,58644.0,2.68899284]
[1725299509049,0.00816,58650.0,58644.0,2.70298478]
[1725299509249,0.00816,58650.0,58644.0,2.70275291]
[1725299509666,0.00816,58650.0,58644.0,2.57535234]
[1725299510513,0.00816,58650.0,58644.0,2.56135234]
[1725299511178,0.00816,58650.0,58644.0,2.57535234]
[1725299511410,0.00816,58650.0,58644.0,2.67724276]
[1725299512107,0.00816,58650.0,58644.0,2.69724276]
[1725299512361,0.00816,58650.0,58649.0,1.544549]
[1725299512598,0.00816,58650.0,58649.0,1.80531323]
[1725299512847,0.00816,58650.0,58649.0,2.0536176]
[1725299513098,0.00816,58650.0,58649.0,2.0790775]
[1725299513340,0.00816,58660.0,58658.0,0.03]
[1725299513629,0.0004,58679.0,58678.0,0.170421]
[1725299513831,0.0004,58679.0,58678.0,1.61977123]
[1725299514042,0.0004,58679.0,58678.0,2.32342206]
[1725299514474,0.0004,58679.0,58678.0,2.32142206]
[1725299514911,0.0004,58679.0,58678.0,2.34442206]
[1725299515125,0.0004,58679.0,58678.0,2.00042206]
[1725299515352,0.0004,58679.0,58678.0,1.98952911]
[1725299515571,0.0004,58679.0,58678.0,1.53068124]
[1725299515772,0.0004,58679.0,58678.0,1.64268611]
[1725299515982,0.0004,58679.0,58678.0,1.56468309]
[1725299516181,0.0004,58679.0,58678.0,1.52581483]
[1725299516388,0.0004,58679.0,58678.0,1.51581483]
[1725299516590,0.0004,58679.0,58678.0,2.06712267]
[1725299517021,0.0004,58679.0,58678.0,2.08112267]
[1725299517236,0.0004,58679.0,58678.0,2.06712267]
[1725299517873,0.0004,58679.0,58678.0,2.08735267]
[1725299518083,0.0004,58679.0,58678.0,2.11535267]
[1725299518538,0.0004,58679.0,58678.0,2.06712267]
[1725299518768,0.0004,58679.0,58678.0,2.06912267]
[1725299519847,0.001216,58679.0,58678.0,2.10135267]
[1725299520068,0.001216,58679.0,58678.0,2.11535267]
[1725299520275,0.001216,58679.0,58678.0,2.11735267]
[1725299520729,0.001216,58679.0,58678.0,2.11535267]
[1725299521200,0.001216,58679.0,58678.0,2.08112267]
[1725299521919,0.001216,58679.0,58678.0,2.42196567]
[1725299522157,0.001216,58679.0,58678.0,2.45819567]
[1725299522379,0.0132711,58696.0,58679.0,1.565766]
[1725299522614,0.0132711,58696.0,58679.0,2.596923]
[1725299522849,6e-07,58680.0,58679.0,2.57322799]
[1725299523125,6e-07,58680.0,58679.0,2.61888099]
[1725299523343,6e-07,58680.0,58679.0,2.78734176]
[1725299523547,6e-07,58680.0,58679.0,2.61888099]
[1725299523759,6e-07,58680.0,58679.0,2.58722799]
[1725299524200,6e-07,58680.0,58679.0,2.64688099]
[1725299525463,6e-07,58680.0,58679.0,2.60122799]
[1725299525734,6e-07,58680.0,58679.0,2.64688099]
[1725299528468,6e-07,58680.0,58679.0,2.60122799]
[1725299529137,6e-07,58680.0,58679.0,2.25839099]
[1725299529794,6e-07,58680.0,58679.0,1.91755399]
[1725299530004,6e-07,58680.0,58679.0,1.93129932]
[1725299530236,6e-07,58680.0,58679.0,0.57495832]
[1725299530444,6e-07,58680.0,58679.0,0.06370332]
[1725299530654,6e-07,58680.0,58679.0,1.74967718]
[1725299530874,6e-07,58680.0,58679.0,1.74626932]
[1725299531086,6e-07,58680.0,58679.0,1.73226932]
[1725299531308,6e-07,58680.0,58679.0,2.10310632]
[1725299531509,6e-07,58680.0,58679.0,1.75326932]
[1725299531715,0.0008166,58680.0,58679.0,1.84826932]
[1725299531921,0.0008166,58680.0,58679.0,1.88526932]
[1725299532135,0.0008166,58680.0,58679.0,1.87926932]
[1725299532363,0.0008166,58680.0,58679.0,1.85126932]
[1725299532615,0.0008166,58680.0,58679.0,1.90549932]
[1725299532836,0.0008166,58680.0,58679.0,1.90749932]
[1725299533560,0.0008166,58680.0,58679.0,1.91877032]
[1725299533812,0.0008166,58680.0,58679.0,1.94677032]
[1725299534083,0.0008166,58680.0,58679.0,1.86854032]
[1725299534772,0.0008166,58680.0,58679.0,1.88254032]
[1725299534979,0.0008166,58680.0,58679.0,1.86854032]
[1725299535189,0.0008166,58680.0,58679.0,1.85454032]
[1725299535387,0.0008166,58680.0,58679.0,1.88254032]
[1725299535594,0.0008166,58680.0,58679.0,1.86854032]
[1725299536850,0.0008166,58680.0,58679.0,1.26490332]
[1725299537063,0.0008166,58680.0,58679.0,1.27890332]
[1725299537485,0.0008166,58680.0,58679.0,1.62974032]
[1725299537746,0.0008166,58680.0,58679.0,1.71094032]
[1725299537966,0.0008166,58680.0,58679.0,1.73117032]
[1725299538177,0.0008166,58680.0,58679.0,2.28360732]
[1725299538626,0.0008166,58680.0,58679.0,2.25560732]
[1725299538831,0.0008166,58680.0,58679.0,2.30181116]
[1725299539037,0.0008166,58680.0,58679.0,2.28781116]
[1725299539470,0.0008166,58680.0,58679.0,2.30181116]
[1725299539892,0.0008166,58680.0,58679.0,2.34746416]
[1725299540207,0.0008166,58680.0,58679.0,2.33346416]
[1725299540469,0.0008166,58680.0,58679.0,2.34746416]
[1725299541594,0.0008166,58680.0,58679.0,2.30181116]
[1725299542262,0.0008166,58680.0,58679.0,1.94277032]
[1725299542438,0.0008166,58680.0,58679.0,1.99277032]
[1725299543070,0.0008166,58680.0,58679.0,2.33360732]
[1725299544867,6e-07,58680.0,58679.0,2.67444432]
[1725299545809,6e-07,58680.0,58679.0,2.72009732]
[1725299546205,6e-07,58680.0,58679.0,2.82096469]
[1725299546414,6e-07,58680.0,58679.0,2.67444432]
[1725299546627,6e-07,58680.0,58679.0,2.77534831]
[1725299547086,6e-07,58680.0,58679.0,2.82100131]
[1725299547227,6e-07,58680.0,58679.0,2.72009732]
[1725299547597,6e-07,58680.0,58679.0,2.80061496]
[1725299547778,6e-07,58680.0,58679.0,2.67444432]
[1725299548359,6e-07,58680.0,58679.0,2.80061496]
[1725299548610,6e-07,58680.0,58679.0,2.67444432]
[1725299549243,6e-07,58680.0,58679.0,2.33360732]
[1725299549453,6e-07,58680.0,58679.0,2.09378808]
[1725299549669,6e-07,58680.0,58679.0,1.99277032]
[1725299550309,6e-07,58680.0,58679.0,2.09378808]
[1725299550501,6e-07,58680.0,58679.0,2.43462508]
[1725299550715,6e-07,58680.0,58679.0,2.33360732]
[1725299551954,6e-07,58680.0,58679.0,1.99277032]
[1725299552163,6e-07,58680.0,58679.0,2.10929668]
[1725299552391,6e-07,58680.0,58679.0,1.71074032]
[1725299552592,6e-07,58680.0,58679.0,1.82205737]
[1725299552796,6e-07,58680.0,58679.0,1.47122037]
[1725299553000,6e-07,58680.0,58679.0,1.36990332]
[1725299553207,6e-07,58680.0,58679.0,1.44589877]
[1725299553416,6e-07,58680.0,58679.0,1.36990332]
[1725299553619,6e-07,58680.0,58679.0,1.39290332]
[1725299554443,6e-07,58680.0,58679.0,1.50422037]
[1725299554649,6e-07,58680.0,58679.0,1.40290332]
[1725299554849,6e-07,58680.0,58679.0,1.52942968]
[1725299555258,6e-07,58680.0,58679.0,1.40379982]
[1725299555695,6e-07,58680.0,58679.0,1.39379982]
[1725299556334,6e-07,58680.0,58679.0,1.4953369]
[1725299557652,6e-07,58680.0,58679.0,1.5207038]
[1725299558321,6e-07,58680.0,58679.0,1.39379982]
[1725299558777,6e-07,58680.0,58679.0,1.29379982]
[1725299558981,6e-07,58680.0,58679.0,0.92996282]
[1725299559193,0.0159006,58680.0,58679.0,0.33675747]
[1725299559400,0.0159006,58680.0,58679.0,0.67759447]
[1725299559605,0.0159006,58680.0,58679.0,0.23501782]
[1725299559813,0.0159006,58680.0,58679.0,0.05059982]
[1725299560042,0.2428156,58680.0,58679.0,0.10152975]
[1725299560242,1.11894244,58680.0,58679.0,0.06459982]
[1725299560476,1.26491868,58680.0,58679.0,0.06459982]
[1725299560684,1.45977344,58680.0,58679.0,0.06459982]
[1725299560891,1.45977344,58680.0,58679.0,0.0148965]
[1725299561339,1.45977344,58680.0,58679.0,0.0008965]
[1725299561795,1.45977344,58680.0,58679.0,0.0148965]
[1725299562034,1.45977344,58680.0,58679.0,0.0008965]
[1725299562841,1.46177344,58680.0,58679.0,0.0018965]
[1725299563075,1.46177344,58680.0,58679.0,0.0008965]
[1725299563701,1.1470148,58680.0,58679.0,0.0008965]
[1725299563915,1.3174298,58680.0,58679.0,0.0008965]
[1725299564137,1.3194298,58680.0,58679.0,0.0018965]
[1725299564572,1.3174298,58680.0,58679.0,0.0008965]
[1725299565200,1.3174298,58680.0,58679.0,0.0018965]
[1725299565400,1.3174298,58680.0,58679.0,0.0008965]
[1725299565938,1.3184298,58680.0,58679.0,0.0008965]
[1725299566346,1.3184298,58680.0,58679.0,0.0018965]
[1725299567506,1.3192448,58680.0,58679.0,0.0018965]
[1725299567661,1.3192448,58680.0,58679.0,0.0008965]
[1725299571791,1.8294792,58680.0,58679.0,0.0008965]
[1725299572048,2.4409742,58680.0,58679.0,0.0008965]
[1725299572246,2.2835708,58680.0,58679.0,0.0008965]
[1725299572784,2.2526808,58680.0,58679.0,0.0008965]
[1725299572985,1.57561096,58680.0,58679.0,0.0008965]
[1725299573448,1.7700758,58680.0,58679.0,0.0008965]
[1725299575558,1.7600758,58680.0,58679.0,0.0008965]
[1725299576221,1.7720758,58680.0,58679.0,0.0008965]
[1725299576426,1.7700758,58680.0,58679.0,0.0008965]
[1725299576596,1.7600758,58680.0,58679.0,0.0008965]
[1725299577598,1.4192448,58680.0,58679.0,0.0008965]
[1725299577806,1.0784138,58680.0,58679.0,0.0008965]
[1725299578018,0.001815,58680.0,58679.0,0.0008965]
[1725299578251,0.001815,58680.0,58679.0,0.03661698]
[1725299578687,0.000815,58680.0,58679.0,0.03661698]
[1725299579328,0.001815,58680.0,58679.0,0.03661698]
[1725299580376,0.17223,58680.0,58679.0,0.03661698]
[1725299580597,0.513061,58680.0,58679.0,0.03661698]
[1725299581219,0.853892,58680.0,58679.0,0.03661698]
[1725299581421,0.853892,58680.0,58679.0,0.0008965]
[1725299583433,1.194723,58680.0,58679.0,0.0008965]
[1725299584328,1.36327464,58680.0,58679.0,0.0008965]
[1725299584552,1.545554,58680.0,58679.0,0.0008965]
[1725299585229,1.886385,58680.0,58679.0,0.0008965]
[1725299585475,1.645554,58680.0,58679.0,0.0008965]
[1725299585703,1.647554,58680.0,58679.0,0.0008965]
[1725299585941,1.637554,58680.0,58679.0,0.0008965]
[1725299586168,1.645554,58680.0,58679.0,0.0008965]
[1725299586400,1.67228229,58680.0,58679.0,0.0008965]
[1725299587768,1.84083393,58680.0,58679.0,0.0008965]
[1725299589111,1.67228229,58680.0,58679.0,0.0008965]
[1725299590171,1.67428229,58680.0,58679.0,0.0008965]
[1725299592622,1.193234,58664.0,58663.0,0.04908721]
[1725299592826,1.38769884,58664.0,58663.0,0.04908721]
[1725299593023,1.38769884,58664.0,58655.0,0.56600786]
[1725299593024,0.852427,58656.0,58655.0,0.56600786]
[1725299593250,0.852427,58656.0,58655.0,0.6137454]
[1725299593590,0.852427,58656.0,58655.0,0.10833754]
[1725299593991,0.170485,58656.0,58655.0,0.10833754]
[1725299594330,0.170485,58656.0,58655.0,0.11633754]
[1725299594552,0.170485,58656.0,58655.0,0.10833754]
[1725299594972,0.170485,58656.0,58655.0,0.11033754]
[1725299595176,0.170485,58656.0,58655.0,0.10933754]
[1725299595400,0.170485,58656.0,58655.0,0.11133754]
[1725299595604,0.170482,58658.0,58655.0,0.11133754]
[1725299595830,0.170483,58657.0,58655.0,0.11433754]
[1725299596034,0.170485,58656.0,58655.0,0.11433754]
[1725299597204,0.170485,58656.0,58655.0,0.11133754]
[1725299597409,0.170485,58656.0,58655.0,0.10833754]
[1725299597602,0.170485,58656.0,58655.0,0.10933754]
[1725299597836,0.170485,58656.0,58655.0,0.11233754]
[1725299598195,0.170485,58656.0,58655.0,0.10833754]
[1725299598420,0.170481,58658.0,58655.0,0.11533754]
[1725299598621,0.170481,58658.0,58655.0,0.28582354]
[1725299599340,0.170482,58657.0,58655.0,0.11533754]
[1725299599585,0.17048,58658.0,58655.0,0.11533754]
[1725299600399,0.340951,58660.0,58656.0,0.170484]
[1725299600400,0.170474,58660.0,58656.0,0.170484]
[1725299600613,0.170477,58659.0,58657.0,0.04773573]
[1725299600841,0.170477,58659.0,58655.0,0.231087]
[1725299601055,0.170477,58659.0,58656.0,0.04774039]
[1725299601304,0.170477,58659.0,58655.0,0.232087]
[1725299601503,0.170477,58659.0,58657.0,0.04773573]
[1725299601679,0.170477,58659.0,58656.0,0.04774039]
[1725299601888,0.170477,58659.0,58658.0,0.04773107]
[1725299602107,0.170477,58659.0,58657.0,0.04773573]
[1725299602348,0.170468,58662.0,58658.0,0.21820807]
[1725299602578,0.340923,58665.0,58659.0,0.318575]
[1725299602776,0.170469,58662.0,58659.0,0.318575]
[1725299602924,0.170469,58662.0,58660.0,0.04772175]
[1725299603321,0.170464,58664.0,58660.0,0.21819475]
[1725299603758,0.170466,58663.0,58660.0,0.21819475]
[1725299604433,0.007,58662.0,58660.0,0.21819475]
[1725299604641,0.004,58662.0,58660.0,0.21819475]
[1725299605069,0.004,58663.0,58661.0,0.170471]
[1725299605432,0.004,58663.0,58660.0,0.04772175]
[1725299605433,0.175466,58663.0,58660.0,0.04772175]
[1725299605561,0.516396,58663.0,58662.0,0.04771448]
[1725299605763,0.003,58662.0,58661.0,0.04771914]
[1725299605990,0.003,58662.0,58659.0,0.318576]
[1725299606217,0.003,58662.0,58660.0,0.21819533]
[1725299606592,0.173468,58662.0,58660.0,0.04772233]
[1725299606999,0.170471,58661.0,58660.0,0.04772233]
[1725299607436,0.511413,58661.0,58660.0,0.04772233]
[1725299608242,0.852355,58661.0,58660.0,0.04772233]
[1725299608443,0.170482,58657.0,58656.0,0.136]
[1725299608644,0.170482,58657.0,58656.0,0.18374097]
[1725299609128,0.511447,58657.0,58656.0,0.18374097]
[1725299610275,0.170482,58657.0,58656.0,0.18374097]
[1725299610824,0.170482,58657.0,58656.0,0.18674097]
[1725299611893,0.170482,58657.0,58656.0,0.18874097]
[1725299616072,0.511447,58657.0,58656.0,0.18874097]
[1725299618580,0.340947,58661.0,58656.0,0.18874097]
[1725299618741,0.170478,58659.0,58656.0,0.35922497]
[1725299618949,0.340914,58666.0,58657.0,0.340964]
[1725299618950,0.340932,58663.0,58657.0,0.340964]
[1725299619273,0.17047,58662.0,58660.0,0.0618]
[1725299619456,0.17047,58662.0,58661.0,0.04771951]
[1725299620996,0.19446484,58668.0,58661.0,0.04471951]
[1725299620997,0.340921,58665.0,58661.0,0.04471951]
[1725299621237,0.17047,58662.0,58661.0,0.04471951]
[1725299621682,0.17447,58662.0,58661.0,0.04471951]
[1725299621889,0.17847,58662.0,58661.0,0.04471951]
[1725299622295,0.17447,58662.0,58661.0,0.04471951]
[1725299623062,0.17047,58662.0,58661.0,0.04471951]
[1725299623892,0.17347,58662.0,58661.0,0.04471951]
[1725299624055,0.17547,58662.0,58661.0,0.04471951]
[1725299624934,0.005,58662.0,58661.0,0.04471951]
[1725299625122,0.005,58662.0,58661.0,0.55613251]
[1725299625328,0.005,58662.0,58661.0,1.04247451]
[1725299625569,0.005,58662.0,58661.0,1.38341651]
[1725299626665,0.003,58662.0,58661.0,1.38341651]
[1725299626871,0.43444784,58677.0,58673.0,0.170435]
[1725299627047,0.170424,58677.0,58673.0,0.170435]
[1725299627255,0.000816,58679.0,58674.0,0.04715737]
[1725299627451,0.000816,58679.0,58675.0,0.170428]
[1725299627794,0.000816,58679.0,58676.0,0.21757506]
[1725299628678,0.171235,58679.0,58676.0,0.04714806]
[1725299628884,0.171235,58679.0,58675.0,0.171428]
[1725299629395,0.000816,58679.0,58676.0,0.04714806]
[1725299629817,0.000816,58679.0,58675.0,0.002]
[1725299630051,0.000816,58679.0,58677.0,0.0471434]
[1725299630253,0.000816,58679.0,58676.0,0.04714806]
[1725299630461,0.000816,58679.0,58677.0,0.0471434]
[1725299630588,0.171235,58679.0,58677.0,0.0471434]
[1725299630783,0.171235,58679.0,58676.0,0.171426]
[1725299631017,0.171235,58679.0,58677.0,0.04713652]
[1725299631604,0.171235,58679.0,58677.0,0.04813652]
[1725299633198,0.171235,58679.0,58677.0,0.04913652]
[1725299635292,0.170421,58678.0,58677.0,0.04913652]
[1725299635774,0.000816,58679.0,58677.0,0.04913652]
[1725299635979,0.171235,58679.0,58677.0,0.04913652]
[1725299636180,0.171235,58679.0,58677.0,0.04813652]
[1725299636398,0.171235,58679.0,58677.0,0.04713652]
[1725299636607,0.000816,58679.0,58677.0,0.04913652]
[1725299636815,0.000816,58679.0,58678.0,0.1428]
[1725299637027,0.000816,58679.0,58678.0,0.36035286]
[1725299637479,0.000816,58679.0,58678.0,0.70119586]
[1725299637708,0.000816,58679.0,58678.0,0.36035286]
[1725299637938,0.000816,58679.0,58678.0,0.19093186]
[1725299638399,0.000816,58679.0,58678.0,0.18993186]
[1725299638602,0.000816,58679.0,58678.0,0.70119586]
[1725299638830,0.000816,58679.0,58678.0,0.70219586]
[1725299639055,0.171234,58679.0,58678.0,0.11463186]
[1725299639528,0.512071,58679.0,58678.0,0.11463186]
[1725299639736,0.512071,58679.0,58678.0,0.11663186]
[1725299639937,0.512071,58679.0,58678.0,0.11563186]
[1725299640365,0.512071,58679.0,58678.0,0.11763186]
[1725299641097,0.852908,58679.0,58678.0,0.05113186]
[1725299641301,0.512071,58679.0,58678.0,0.004]
[1725299641732,0.512071,58679.0,58678.0,0.05124186]
[1725299641936,0.512071,58679.0,58678.0,0.004]
[1725299642139,0.512071,58679.0,58678.0,0.05124186]
[1725299642341,0.512071,58679.0,58678.0,0.004]
[1725299642584,0.512071,58679.0,58678.0,0.05124186]
[1725299642759,0.512071,58679.0,58678.0,0.004]
[1725299643007,0.512071,58679.0,58678.0,0.05127337]
[1725299643172,0.512071,58679.0,58678.0,0.004]
[1725299643708,0.512071,58679.0,58678.0,0.05127337]
[1725299644706,0.852908,58679.0,58678.0,0.05127337]
[1725299645102,1.193745,58679.0,58678.0,0.004]
[1725299645303,0.852908,58679.0,58678.0,0.004]
[1725299645733,1.193745,58679.0,58678.0,0.004]
[1725299645941,0.852908,58679.0,58678.0,0.004]
[1725299646154,1.193745,58679.0,58678.0,0.004]
[1725299646531,0.852908,58679.0,58678.0,0.004]
[1725299646788,1.193745,58679.0,58678.0,0.004]
[1725299647033,1.776339,58679.0,58678.0,0.004]
[1725299647266,1.764339,58679.0,58678.0,0.004]
[1725299647499,1.644582,58679.0,58678.0,0.002]
[1725299647741,2.37947464,58679.0,58678.0,0.002]
[1725299647913,2.36508264,58679.0,58678.0,0.002]
[1725299648351,2.196531,58679.0,58678.0,0.002]
[1725299648969,2.196531,58679.0,58665.0,0.04920308]
[1725299648970,0.85228,58666.0,58665.0,0.04920308]
[1725299649380,0.852295,58665.0,58664.0,0.0633]
[1725299650471,0.340912,58666.0,58661.0,0.0769976]
[1725299650472,0.85234,58662.0,58661.0,0.1372976]
[1725299650671,0.85234,58662.0,58661.0,0.0611976]
[1725299651561,0.170468,58662.0,58661.0,0.0611976]
[1725299651916,0.170465,58663.0,58661.0,0.0611976]
[1725299652092,0.170465,58663.0,58662.0,0.1255534]
[1725299653702,0.171465,58663.0,58662.0,0.1495534]
[1725299656034,0.512395,58663.0,58662.0,0.1495534]
[1725299656412,0.853325,58663.0,58662.0,0.1495534]
[1725299657234,0.853325,58663.0,58662.0,0.1022]
[1725299658504,0.853325,58663.0,58662.0,0.15065763]
[1725299659921,0.001,58663.0,58662.0,0.15065763]
[1725299660091,0.001,58663.0,58662.0,0.21615763]
[1725299660297,0.171465,58663.0,58662.0,0.21615763]
[1725299660501,0.001,58663.0,58662.0,0.21615763]
[1725299660680,0.001,58663.0,58662.0,0.72756163]
[1725299661210,0.001,58663.0,58662.0,1.06849763]
[1725299661579,0.001816,58663.0,58662.0,1.06849763]
[1725299667350,0.001816,58663.0,58662.0,0.72756163]
[1725299669758,0.001816,58663.0,58662.0,0.21615763]
[1725299670012,0.28909966,58663.0,58662.0,0.21615763]
[1725299670236,0.513211,58663.0,58662.0,0.21615763]